fUSD/lending_fUSD_20250103
["ID","MTS","AMOUNT","RATE_DAILY","PERIOD"]
[347507754,1735893032077,-150.0,9.175e-05,2]
[347507755,1735893032086,-150.0,9.195e-05,2]
[347507756,1735893032095,-150.0,9.195e-05,2]
[347507757,1735893032104,-150.0,9.211e-05,2]
[347507758,1735893032113,-150.0,9.216e-05,2]
[347507759,1735893032123,-500.0,9.219e-05,2]
[347507760,1735893032132,-150.0,9.22e-05,2]
[347507761,1735893032141,-150.0,9.226e-05,2]
[347507762,1735893032151,-150.0,9.236e-05,2]
[347507763,1735893032160,-150.0,9.254e-05,2]
[347507764,1735893032169,-166.33,9.256e-05,2]
[347507765,1735893032178,-150.0,9.257e-05,2]
[347507767,1735893032187,-150.0,9.257e-05,2]
[347507769,1735893032197,-150.0,9.277e-05,2]
[347507771,1735893032206,-150.0,9.281e-05,2]
[347507773,1735893032215,-150.0,9.287e-05,2]
[347507775,1735893032224,-150.0,9.287e-05,2]
[347507777,1735893032233,-150.0,9.295e-05,2]
[347507779,1735893032242,-1500.0,9.296e-05,2]
[347507781,1735893032251,-150.0,9.296e-05,2]
[347507783,1735893032260,-150.0,9.297e-05,2]
[347507785,1735893032270,-150.0,9.298e-05,2]
[347507788,1735893032292,-150.0,9.301e-05,2]
[347507790,1735893032301,-165.94740632,9.301e-05,2]
[347507792,1735893032311,-150.0,9.302e-05,2]
[347507794,1735893032320,-150.0,9.312e-05,2]
[347507796,1735893032329,-150.0,9.312e-05,2]
[347507798,1735893032339,-150.0,9.314e-05,2]
[347507800,1735893032348,-150.0,9.314e-05,2]
[347507802,1735893032357,-150.0,9.315e-05,2]
[347507804,1735893032366,-150.0,9.318e-05,2]
[347507806,1735893032375,-150.0,9.318e-05,2]
[347507808,1735893032385,-1500.0,9.327e-05,2]
[347507810,1735893032394,-150.0,9.338e-05,2]
[347507812,1735893032404,-150.0,9.338e-05,2]
[347507814,1735893032413,-150.0,9.339e-05,2]
[347507817,1735893032424,-150.0,9.343e-05,2]
[347507819,1735893032433,-150.0,9.344e-05,2]
[347507821,1735893032443,-1973.463,9.345e-05,2]
[347507823,1735893032453,-150.0,9.346e-05,2]
[347507825,1735893032462,-150.0,9.348e-05,2]
[347507827,1735893032472,-154.22335431,9.35e-05,2]
[347507829,1735893032481,-150.0,9.358e-05,2]
[347507831,1735893032490,-150.0,9.359e-05,2]
[347507833,1735893032499,-150.0,9.359e-05,2]
[347507835,1735893032510,-150.0,9.36e-05,2]
[347507837,1735893032519,-150.0,9.373e-05,2]
[347507838,1735893032528,-150.0,9.374e-05,2]
[347507839,1735893032538,-150.0,9.379e-05,2]
[347507840,1735893032547,-150.0,9.379e-05,2]
[347507842,1735893032558,-150.0,9.382e-05,2]
[347507844,1735893032569,-150.0,9.387e-05,2]
[347507846,1735893032578,-150.0,9.4e-05,2]
[347507848,1735893032588,-150.0,9.401e-05,2]
[347507850,1735893032597,-150.0,9.41e-05,2]
[347507852,1735893032607,-150.0,9.413e-05,2]
[347507854,1735893032616,-150.0,9.414e-05,2]
[347507856,1735893032625,-150.0,9.416e-05,2]
[347507858,1735893032635,-239.98360066,9.418e-05,2]
[347507860,1735893032645,-150.0,9.42e-05,2]
[347507862,1735893032654,-150.0,9.424e-05,2]
[347507865,1735893032664,-150.0,9.424e-05,2]
[347507867,1735893032673,-150.0,9.429e-05,2]
[347507869,1735893032682,-150.0,9.431e-05,2]
[347507871,1735893032692,-150.0,9.44e-05,2]
[347507873,1735893032702,-150.0,9.44e-05,2]
[347507875,1735893032711,-150.0,9.44e-05,2]
[347507877,1735893032721,-525.063,9.442e-05,2]
[347507879,1735893032730,-6170.8821,9.442e-05,2]
[347507881,1735893032740,-540.5479,9.442e-05,2]
[347507883,1735893032749,-199.9481,9.443e-05,2]
[347507885,1735893032759,-5000.0,9.443e-05,2]
[347507886,1735893032768,-498.72,9.444e-05,2]
[347507887,1735893032778,-492.9,9.444e-05,2]
[347507888,1735893032790,-492.07,9.444e-05,2]
[347507889,1735893032800,-509.41,9.444e-05,2]
[347507890,1735893032809,-504.26,9.444e-05,2]
[347507891,1735893032820,-504.56,9.444e-05,2]
[347507892,1735893032833,-507.9,9.444e-05,2]
[347507893,1735893032843,-508.35,9.444e-05,2]
[347507894,1735893032852,-506.09,9.444e-05,2]
[347507895,1735893032862,-103.65045656,9.444e-05,2]
[347507896,1735893032875,-391.77954344,9.444e-05,2]
[347507897,1735893032885,-493.9,9.444e-05,2]
[347507898,1735893032895,-491.79,9.445e-05,2]
[347507899,1735893032905,-396.27748682,9.445e-05,2]
[347507908,1735893037616,-2500.0,9.442e-05,2]
[347507909,1735893037626,-109.67251318,9.445e-05,2]
[347507910,1735893037637,-7957.54469411,9.445e-05,2]
[347507911,1735893037650,-323.37730589,9.445e-05,2]
[347507912,1735893037660,-2448.23627411,9.445e-05,2]
[347507913,1735893037689,-14534.79842589,9.445e-05,2]
[347507914,1735893037698,-496.18,9.445e-05,2]
[347507915,1735893037708,-505.19,9.445e-05,2]
[347507916,1735893037717,-498.04,9.445e-05,2]
[347507917,1735893037727,-501.12,9.445e-05,2]
[347507918,1735893037736,-507.89,9.445e-05,2]
[347507919,1735893037746,-150.0,9.448e-05,2]
[347507920,1735893037755,-150.0,9.451e-05,2]
[347507921,1735893037765,-150.0,9.452e-05,2]
[347507922,1735893037774,-150.0,9.455e-05,2]
[347507923,1735893037786,-150.0,9.461e-05,2]
[347507924,1735893037796,-150.0,9.463e-05,2]
[347507925,1735893037805,-150.0,9.467e-05,2]
[347507926,1735893037815,-150.0,9.469e-05,2]
[347507927,1735893037824,-1500.0,9.469e-05,2]
[347507928,1735893037834,-150.0,9.471e-05,2]
[347507929,1735893037843,-150.0,9.473e-05,2]
[347507930,1735893037853,-150.0,9.474e-05,2]
[347507931,1735893037863,-150.0,9.48e-05,2]
[347507932,1735893037872,-150.0,9.481e-05,2]
[347507933,1735893037881,-150.0,9.489e-05,2]
[347507934,1735893037890,-150.0,9.495e-05,2]
[347507935,1735893037900,-150.0,9.496e-05,2]
[347507936,1735893037909,-38.45543366,9.497e-05,2]
[347507937,1735893037941,-1280.55456634,9.497e-05,2]
[347507938,1735893037951,-1288.0,9.5e-05,2]
[347507939,1735893037961,-400.0,9.5e-05,3]
[347507940,1735893037970,-150.0,9.502e-05,2]
[347507941,1735893037980,-150.0,9.502e-05,2]
[347507942,1735893037989,-150.0,9.506e-05,2]
[347507943,1735893037998,-150.0,9.507e-05,2]
[347507944,1735893038007,-150.0,9.51e-05,2]
[347507945,1735893038016,-150.0,9.516e-05,2]
[347507947,1735893038026,-150.0,9.516e-05,2]
[347507948,1735893038036,-150.0,9.522e-05,2]
[347507949,1735893038046,-500.0,9.523e-05,2]
[347507950,1735893038056,-150.0,9.524e-05,2]
[347507951,1735893038066,-150.0,9.531e-05,2]
[347507952,1735893038075,-150.0,9.532e-05,2]
[347507953,1735893038085,-150.0,9.538e-05,2]
[347507954,1735893038095,-194.39,9.54e-05,2]
[347507955,1735893038104,-6411.75,9.541e-05,2]
[347507956,1735893038113,-150.0,9.541e-05,2]
[347507957,1735893038122,-702.27,9.541e-05,2]
[347507958,1735893038131,-2650.23,9.541e-05,2]
[347507959,1735893038141,-3850.8,9.541e-05,2]
[347507960,1735893038150,-500.0,9.541e-05,2]
[347507961,1735893038164,-8622.54,9.541e-05,2]
[347507962,1735893038173,-5887.05,9.541e-05,2]
[347507963,1735893038182,-6508.9,9.541e-05,2]
[347507964,1735893038192,-8612.75,9.541e-05,2]
[347507965,1735893038201,-3074.0,9.541e-05,2]
[347507966,1735893038210,-10140.63,9.541e-05,2]
[347507967,1735893038220,-4740.42,9.541e-05,2]
[347507968,1735893038229,-2150.95683434,9.541e-05,2]
[347507969,1735893038261,-524.49047886,9.541e-05,2]
[347507970,1735893038379,-9424.0626868,9.541e-05,2]
[347507971,1735893038389,-3980.09,9.541e-05,2]
[347507972,1735893038398,-5558.18,9.541e-05,2]
[347507973,1735893038408,-1716.81,9.541e-05,2]
[347507974,1735893038417,-719.94,9.541e-05,2]
[347507975,1735893038427,-901.71,9.541e-05,2]
[347507976,1735893038437,-817.94,9.541e-05,2]
[347507977,1735893038446,-500.0,9.541e-05,2]
[347507978,1735893038456,-1108.94,9.541e-05,2]
[347507979,1735893038466,-3341.17,9.541e-05,2]
[347507980,1735893038475,-4489.99,9.541e-05,2]
[347507981,1735893038485,-608.39,9.541e-05,2]
[347507982,1735893038495,-980.87,9.541e-05,2]
[347507983,1735893038504,-1590.05,9.541e-05,2]
[347507984,1735893038514,-1677.07,9.541e-05,2]
[347507985,1735893038523,-157.08176557,9.541e-05,2]
[347507986,1735893038537,-1496.06823443,9.541e-05,2]
[347507987,1735893038546,-4137.51,9.541e-05,2]
[347507988,1735893038555,-500.0,9.541e-05,2]
[347507989,1735893038567,-500.0,9.541e-05,2]
[347507990,1735893038577,-3234.06,9.541e-05,2]
[347507991,1735893038587,-421.50633895,9.541e-05,2]
[347507992,1735893038598,-78.49366105,9.541e-05,2]
[347507993,1735893038608,-500.0,9.542e-05,2]
[347507994,1735893038617,-1093.13,9.542e-05,2]
[347507995,1735893038627,-500.0,9.542e-05,2]
[347507996,1735893038637,-2385.74753182,9.542e-05,2]
[347507997,1735893038649,-484.67246818,9.542e-05,2]
[347507998,1735893038658,-500.0,9.542e-05,2]
[347507999,1735893038667,-500.0,9.542e-05,2]
[347508000,1735893038677,-500.0,9.542e-05,2]
[347508001,1735893038686,-798.88,9.542e-05,2]
[347508002,1735893038696,-512.32,9.542e-05,2]
[347508003,1735893038705,-500.0,9.542e-05,2]
[347508004,1735893038715,-500.0,9.542e-05,2]
[347508005,1735893038725,-1925.04,9.542e-05,2]
[347508006,1735893038734,-1736.34,9.542e-05,2]
[347508007,1735893038743,-206.56792627,9.542e-05,2]
[347508008,1735893038753,-500.0,9.542e-05,2]
[347508009,1735893038762,-599.06,9.542e-05,2]
[347508010,1735893038772,-3570.06,9.542e-05,2]
[347508011,1735893038781,-152.97997705,9.542e-05,2]
[347508012,1735893038792,-500.0,9.542e-05,2]
[347508013,1735893038801,-682.06,9.542e-05,2]
[347508014,1735893038811,-585.17687265,9.542e-05,2]
[347508015,1735893038821,-500.0,9.542e-05,2]
[347508016,1735893038831,-3071.81,9.542e-05,2]
[347508017,1735893038840,-500.0,9.542e-05,2]
[347508018,1735893038850,-500.0,9.542e-05,2]
[347508019,1735893038859,-1849.77,9.542e-05,2]
[347508020,1735893038869,-500.0,9.542e-05,2]
[347508021,1735893038878,-1545.77,9.542e-05,2]
[347508022,1735893038888,-2969.63,9.542e-05,2]
[347508023,1735893038897,-500.0,9.542e-05,2]
[347508024,1735893038907,-1806.57,9.542e-05,2]
[347508025,1735893038917,-500.0,9.542e-05,2]
[347508026,1735893038926,-501.52147164,9.542e-05,2]
[347508027,1735893038936,-500.0,9.542e-05,2]
[347508028,1735893038946,-342.51301673,9.542e-05,2]
[347508030,1735893039649,-500.0,9.541e-05,2]
[347508031,1735893039659,-157.48698327,9.542e-05,2]
[347508032,1735893039668,-142.28921611,9.542e-05,2]
[347508033,1735893039680,-357.71078389,9.542e-05,2]
[347508034,1735893039689,-2963.28,9.542e-05,2]
[347508035,1735893039700,-500.0,9.542e-05,2]
[347508036,1735893039710,-500.0,9.542e-05,2]
[347508037,1735893039719,-500.0,9.542e-05,2]
[347508038,1735893039728,-500.0,9.542e-05,2]
[347508039,1735893039738,-500.0,9.542e-05,2]
[347508040,1735893039747,-500.0,9.542e-05,2]
[347508041,1735893039757,-500.0,9.542e-05,2]
[347508042,1735893039766,-686.38116428,9.542e-05,2]
[347508043,1735893039778,-946.16300567,9.542e-05,2]
[347508044,1735893039797,-1954.85583005,9.542e-05,2]
[347508045,1735893039806,-500.0,9.542e-05,2]
[347508046,1735893039816,-192.9365568,9.542e-05,2]
[347508047,1735893039825,-650.3,9.542e-05,2]
[347508048,1735893039834,-500.0,9.542e-05,2]
[347508049,1735893039844,-500.0,9.542e-05,2]
[347508050,1735893039853,-437.91573981,9.542e-05,2]
[347508051,1735893039863,-3498.68,9.542e-05,2]
[347508052,1735893039873,-500.0,9.542e-05,2]
[347508053,1735893039882,-500.0,9.542e-05,2]
[347508054,1735893039891,-550.14,9.542e-05,2]
[347508055,1735893039901,-884.89,9.542e-05,2]
[347508056,1735893039911,-500.0,9.542e-05,2]
[347508057,1735893039920,-500.0,9.542e-05,2]
[347508058,1735893039929,-617.45,9.542e-05,2]
[347508059,1735893039940,-500.0,9.542e-05,2]
[347508061,1735893039949,-500.0,9.542e-05,2]
[347508062,1735893039958,-1012.2,9.542e-05,2]
[347508063,1735893039968,-500.0,9.542e-05,2]
[347508064,1735893039977,-500.0,9.542e-05,2]
[347508065,1735893039987,-500.0,9.542e-05,2]
[347508066,1735893039996,-784.58,9.542e-05,2]
[347508067,1735893040006,-500.0,9.542e-05,2]
[347508068,1735893040017,-441.60132396,9.542e-05,2]
[347508069,1735893040026,-500.0,9.542e-05,2]
[347508070,1735893040037,-2135.24,9.542e-05,2]
[347508071,1735893040047,-715.82,9.542e-05,2]
[347508072,1735893040056,-3252.81148926,9.542e-05,2]
[347508075,1735893040068,-275.64851074,9.542e-05,2]
[347508077,1735893040077,-500.0,9.542e-05,2]
[347508079,1735893040087,-500.0,9.542e-05,2]
[347508081,1735893040096,-504.8605703,9.542e-05,2]
[347508083,1735893040106,-1200.26,9.542e-05,2]
[347508085,1735893040115,-758.5,9.542e-05,2]
[347508087,1735893040124,-367.22463614,9.542e-05,2]
[347508090,1735893040135,-132.77536386,9.542e-05,2]
[347508093,1735893040144,-269.25256015,9.542e-05,2]
[347508095,1735893040153,-32.39750334,9.542e-05,2]
[347508109,1735893040276,-290.180202,9.542e-05,2]
[347508116,1735893040331,-707.62980298,9.542e-05,2]
[347508118,1735893040343,-515.805,9.542e-05,2]
[347508131,1735893042810,-257.71590498,9.541e-05,2]
[347508132,1735893042986,-242.28409502,9.541e-05,2]
[347508133,1735893042995,-765.6,9.541e-05,2]
[347508134,1735893043004,-810.87,9.541e-05,2]
[347508135,1735893043014,-271.70749168,9.542e-05,2]
[347508136,1735893043023,-500.0,9.542e-05,2]
[347508137,1735893043032,-1677.25,9.542e-05,2]
[347508138,1735893043042,-294.2884133,9.542e-05,2]
[347508139,1735893043175,-500.0,9.541e-05,2]
[347508140,1735893043185,-205.7115867,9.542e-05,2]
[347508141,1735893043194,-3810.92,9.542e-05,2]
[347508142,1735893043203,-1588.9,9.542e-05,2]
[347508143,1735893043213,-500.0,9.542e-05,2]
[347508144,1735893043222,-1351.97,9.542e-05,2]
[347508145,1735893043231,-962.59,9.542e-05,2]
[347508146,1735893043240,-500.0,9.542e-05,2]
[347508147,1735893043251,-501.90073142,9.542e-05,2]
[347508148,1735893043260,-2460.64,9.542e-05,2]
[347508149,1735893043270,-1182.52,9.542e-05,2]
[347508150,1735893043279,-500.0,9.542e-05,2]
[347508151,1735893043289,-738.96,9.542e-05,2]
[347508152,1735893043299,-3668.78,9.542e-05,2]
[347508153,1735893043308,-500.0,9.542e-05,2]
[347508154,1735893043317,-1475.5,9.542e-05,2]
[347508155,1735893043326,-500.0,9.542e-05,2]
[347508156,1735893043336,-2080.76,9.542e-05,2]
[347508157,1735893043345,-500.0,9.542e-05,2]
[347508158,1735893043354,-4382.1,9.542e-05,2]
[347508159,1735893043363,-171.10490094,9.542e-05,2]
[347508160,1735893043372,-500.0,9.542e-05,2]
[347508161,1735893043381,-2014.04,9.542e-05,2]
[347508162,1735893043391,-500.0,9.542e-05,2]
[347508163,1735893043400,-2288.91,9.542e-05,2]
[347508164,1735893043410,-500.0,9.542e-05,2]
[347508165,1735893043421,-3105.93,9.542e-05,2]
[347508166,1735893043430,-1633.35,9.542e-05,2]
[347508167,1735893043440,-597.19640243,9.542e-05,2]
[347508168,1735893043449,-500.0,9.542e-05,2]
[347508169,1735893043459,-494.20841866,9.542e-05,2]
[347508170,1735893043469,-1197.0,9.542e-05,2]
[347508171,1735893043478,-500.0,9.542e-05,2]
[347508172,1735893043487,-1418.12,9.542e-05,2]
[347508173,1735893043497,-504.14895999,9.542e-05,2]
[347508174,1735893043506,-500.0,9.542e-05,2]
[347508175,1735893043515,-1889.19,9.542e-05,2]
[347508176,1735893043524,-501.06893707,9.542e-05,2]
[347508177,1735893043533,-858.9,9.542e-05,2]
[347508178,1735893043545,-500.0,9.542e-05,2]
[347508179,1735893043557,-653.62,9.542e-05,2]
[347508180,1735893043570,-4746.05,9.542e-05,2]
[347508181,1735893043583,-502.40494804,9.542e-05,2]
[347508182,1735893043592,-1095.25,9.542e-05,2]
[347508183,1735893043603,-500.0,9.542e-05,2]
[347508184,1735893043612,-505.27492351,9.542e-05,2]
[347508185,1735893043622,-500.0,9.542e-05,2]
[347508186,1735893043632,-500.0,9.542e-05,2]
[347508187,1735893043643,-500.0,9.542e-05,2]
[347508188,1735893043653,-500.0,9.542e-05,2]
[347508189,1735893043662,-2881.65,9.542e-05,2]
[347508190,1735893043671,-503.39992979,9.542e-05,2]
[347508191,1735893043681,-1273.81,9.542e-05,2]
[347508192,1735893043690,-929.67,9.542e-05,2]
[347508193,1735893043699,-500.0,9.542e-05,2]
[347508194,1735893043709,-183.63440232,9.542e-05,2]
[347508195,1735893043718,-500.0,9.542e-05,2]
[347508196,1735893043727,-2201.57,9.542e-05,2]
[347508197,1735893043738,-3127.97,9.542e-05,2]
[347508198,1735893043747,-500.0,9.542e-05,2]
[347508199,1735893043757,-1296.21,9.542e-05,2]
[347508200,1735893043767,-500.0,9.542e-05,2]
[347508201,1735893043778,-5417.99647432,9.542e-05,2]
[347508202,1735893043793,-2826.29352568,9.542e-05,2]
[347508203,1735893043802,-2055.3,9.542e-05,2]
[347508204,1735893043812,-500.0,9.542e-05,2]
[347508205,1735893043822,-4118.36,9.542e-05,2]
[347508206,1735893043833,-3441.75,9.542e-05,2]
[347508207,1735893043843,-1492.32955463,9.542e-05,2]
[347508213,1735893045959,-6144.59,9.541e-05,2]
[347508214,1735893045968,-500.0,9.541e-05,2]
[347508215,1735893045977,-546.63,9.541e-05,2]
[347508216,1735893045986,-610.038534,9.541e-05,2]
[347508217,1735893045995,-596.27044537,9.542e-05,2]
[347508218,1735893046004,-9062.58,9.542e-05,2]
[347508219,1735893046014,-27089.95,9.542e-05,2]
[347508220,1735893046023,-1048.91,9.542e-05,2]
[347508221,1735893046032,-517.37568429,9.542e-05,2]
[347508222,1735893046043,-2104.68,9.542e-05,2]
[347508223,1735893046052,-500.0,9.542e-05,2]
[347508224,1735893046061,-1481.27,9.542e-05,2]
[347508225,1735893046070,-2165.03,9.542e-05,2]
[347508226,1735893046080,-500.0,9.542e-05,2]
[347508227,1735893046088,-3.51993634,9.542e-05,2]
[347508228,1735893046099,-496.48006366,9.542e-05,2]
[347508229,1735893046110,-504.69820936,9.542e-05,2]
[347508230,1735893046120,-500.0,9.542e-05,2]
[347508231,1735893046129,-500.0,9.542e-05,2]
[347508232,1735893046139,-3325.93,9.542e-05,2]
[347508234,1735893046148,-500.0,9.542e-05,2]
[347508236,1735893046158,-1317.089112,9.542e-05,2]
[347508238,1735893046167,-500.0,9.542e-05,2]
[347508240,1735893046176,-6972.98,9.542e-05,2]
[347508242,1735893046185,-3509.24,9.542e-05,2]
[347508244,1735893046194,-500.0,9.542e-05,2]
[347508246,1735893046203,-2319.5,9.542e-05,2]
[347508248,1735893046212,-500.0,9.542e-05,2]
[347508250,1735893046221,-155.387515,9.542e-05,2]
[347508252,1735893046230,-3320.79,9.542e-05,2]
[347508254,1735893046239,-33.48670498,9.542e-05,2]
[347508256,1735893046251,-397.09689368,9.542e-05,2]
[347508260,1735893046276,-263.21584521,9.542e-05,2]
[347508264,1735893046307,-2374.29055613,9.542e-05,2]
[347508266,1735893046317,-168.674581,9.542e-05,2]
[347508268,1735893046326,-5441.16,9.542e-05,2]
[347508270,1735893046335,-802.18,9.542e-05,2]
[347508271,1735893046344,-1397.31,9.542e-05,2]
[347508272,1735893046353,-500.0,9.542e-05,2]
[347508273,1735893046362,-2526.73,9.542e-05,2]
[347508274,1735893046371,-500.0,9.542e-05,2]
[347508275,1735893046380,-2352.43,9.542e-05,2]
[347508276,1735893046389,-500.0,9.542e-05,2]
[347508277,1735893046398,-3840.83,9.542e-05,2]
[347508278,1735893046407,-500.0,9.542e-05,2]
[347508279,1735893046416,-7437.85,9.542e-05,2]
[347508280,1735893046424,-500.0,9.542e-05,2]
[347508281,1735893046434,-777.01,9.542e-05,2]
[347508282,1735893046444,-500.0,9.542e-05,2]
[347508283,1735893046453,-10351.4,9.542e-05,2]
[347508284,1735893046462,-2430.33,9.542e-05,2]
[347508285,1735893046471,-500.0,9.542e-05,2]
[347508286,1735893046480,-500.0,9.542e-05,2]
[347508287,1735893046488,-17988.63,9.542e-05,2]
[347508288,1735893046497,-2883.06,9.542e-05,2]
[347508289,1735893046506,-500.0,9.542e-05,2]
[347508290,1735893046514,-500.0,9.542e-05,2]
[347508291,1735893046523,-500.0,9.542e-05,2]
[347508292,1735893046532,-500.0,9.542e-05,2]
[347508293,1735893046542,-2639.5,9.542e-05,2]
[347508294,1735893046550,-3683.65,9.542e-05,2]
[347508295,1735893046559,-2896.46976824,9.542e-05,2]
[347508296,1735893047196,-260.59791014,9.542e-05,2]
[347508297,1735893047235,-1339.42232162,9.542e-05,2]
[347508298,1735893047245,-9.38758339,9.542e-05,2]
[347508299,1735893098211,8657.09,8.566e-05,2]
[347508300,1735893150911,150.0,0.00019796,120]
[347508301,1735893161768,1000.0,8.543e-05,2]
[347508302,1735893163942,1500.0,8.543e-05,2]
[347508303,1735893257631,23900.0,8.45e-05,2]
[347508304,1735893270762,150.0,0.00019196,120]
[347508305,1735893331351,150.0,0.00018467,120]
[347508306,1735893336591,250.0,8.452e-05,2]
[347508307,1735893375589,383.6128911,0.0002,120]
[347508308,1735893389699,312.057,9.07e-05,2]
[347508309,1735893432187,137590.87031218,9e-05,2]
[347508310,1735893442026,808.59,8.451e-05,2]
[347508311,1735893467065,438.32,8.452e-05,2]
[347508312,1735893479719,1596.67041178,8.44e-05,7]
[347508313,1735893483717,194.39,6.762e-05,2]
[347508314,1735893512094,150.0,0.0001752,120]
[347508315,1735893512278,5466.246,8.922e-05,2]
[347508316,1735893512326,187.326,8.922e-05,2]
[347508317,1735893517753,326.747,9.07e-05,2]
[347508318,1735893568621,2006.25,8.219e-05,2]
[347508319,1735893576510,250.0,8.452e-05,2]
[347508320,1735893642158,200.0,8.439e-05,2]
[347508321,1735893678833,2140.95,8.438e-05,2]
[347508322,1735893691601,150.0,0.00019056,120]
[347508323,1735893902362,159.24,8.335e-05,2]
[347508324,1735893902553,159.24,9.03e-05,2]
[347508325,1735893903261,150.0,9.068e-05,2]
[347508326,1735893909971,150.0,8.753e-05,2]
[347508327,1735893910350,150.0,8.783e-05,2]
[347508328,1735893910689,150.0,8.812e-05,2]
[347508329,1735893911594,150.0,8.842e-05,2]
[347508330,1735893911790,150.0,8.871e-05,2]
[347508331,1735893912113,150.0,8.901e-05,2]
[347508332,1735893912443,150.0,8.93e-05,2]
[347508333,1735893912931,150.0,8.96e-05,2]
[347508334,1735893913117,150.0,8.989e-05,2]
[347508335,1735893913433,150.0,9.019e-05,2]
[347508336,1735893913811,150.0,9.048e-05,2]
[347508337,1735893914166,150.0,9.078e-05,2]
[347508338,1735893924228,150.0,8.753e-05,2]
[347508339,1735893924270,150.0,8.814e-05,2]
[347508340,1735893924545,150.0,8.875e-05,2]
[347508341,1735893924862,150.0,8.936e-05,2]
[347508342,1735893925263,150.0,8.997e-05,2]
[347508343,1735893926026,150.0,9.057e-05,2]
[347508344,1735893933491,172.09108179,8.753e-05,2]
[347508345,1735893934654,250.0,8.324e-05,2]
[347508346,1735893936729,150.0,8.753e-05,2]
[347508347,1735893937059,150.0,8.796e-05,2]
[347508348,1735893937380,150.0,8.838e-05,2]
[347508349,1735893937691,150.0,8.88e-05,2]
[347508350,1735893938057,150.0,8.923e-05,2]
[347508351,1735893938388,150.0,8.965e-05,2]
[347508352,1735893938701,150.0,9.007e-05,2]
[347508353,1735893939209,150.0,9.049e-05,2]
[347508354,1735893939720,150.0,9.092e-05,2]
[347508356,1735893955227,150.0,8.753e-05,2]
[347508357,1735893956086,150.00000001,8.753e-05,2]
[347508358,1735893958086,277.36589729,8.753e-05,2]
[347508359,1735893968801,150.0,8.753e-05,2]
[347508360,1735893969130,150.0,9.078e-05,2]
[347508361,1735893976626,889.0799,9.004e-05,2]
[347508362,1735894052870,300.0,8.9e-05,3]
[347508363,1735894054241,700.0,9e-05,3]
[347508364,1735894081825,319.502,9.07e-05,2]
[347508365,1735894123865,167.68,8.863e-05,2]
[347508366,1735894128886,23900.0,8.315e-05,2]
[347508367,1735894185243,1500.0,8.313e-05,2]
[347508368,1735894219602,201.25361845,8.819e-05,2]
[347508377,1735894231971,-642.64,9.102e-05,2]
[347508378,1735894231981,-839.96,9.102e-05,2]
[347508379,1735894232044,-1164.44999995,9.102e-05,2]
[347508380,1735894232056,-574.81345544,9.102e-05,2]
[347508381,1735894232101,-1396.50221221,9.102e-05,2]
[347508382,1735894232113,-330.23018751,9.102e-05,2]
[347508383,1735894232215,-259.11624532,9.102e-05,2]
[347508384,1735894232227,-3987.46789957,9.102e-05,2]
[347508385,1735894232237,-9208.66863454,9.102e-05,2]
[347508386,1735894232293,-4219.45136546,9.102e-05,2]
[347508387,1735894232302,-2642.3846127,9.102e-05,2]
[347508388,1735894232313,-963.68418644,9.102e-05,2]
[347508419,1735894238276,-2453.40557632,9.102e-05,2]
[347508422,1735894238286,-1397.59442368,9.102e-05,2]
[347508425,1735894238306,-1057.5811753,9.102e-05,2]
[347508428,1735894238318,-184.58560188,9.102e-05,2]
[347508430,1735894238327,-315.41439812,9.102e-05,2]
[347508433,1735894238339,-993.51935035,9.102e-05,2]
[347508435,1735894238350,-6944.94625153,9.102e-05,2]
[347508436,1735894238360,-3000.45,9.102e-05,2]
[347508437,1735894238369,-9113.42504642,9.102e-05,2]
[347508438,1735894238380,-2763.62495358,9.102e-05,2]
[347508439,1735894238390,-500.0,9.102e-05,2]
[347508440,1735894238401,-1645.28,9.102e-05,2]
[347508441,1735894238410,-1523.79,9.102e-05,2]
[347508442,1735894238421,-3707.42,9.102e-05,2]
[347508443,1735894238430,-940.0,9.102e-05,2]
[347508444,1735894238439,-500.0,9.102e-05,2]